bitfinex/quotes_ETHUSD_20260107
["timestamp","ask_amount","ask_price","bid_price","bid_amount"]
[1767809139190,1.01e-06,3150.9,3150.1,0.94227633]
[1767809140012,1.01e-06,3150.9,3150.3,0.94227633]
[1767809140202,1.01e-06,3150.9,3150.2,6.34880324]
[1767809140519,1.01e-06,3150.9,3150.1,3.17448721]
[1767809140685,1.01e-06,3150.9,3150.2,0.31744872]
[1767809142594,1.01e-06,3150.9,3150.1,0.833]
[1767809142797,1.01e-06,3150.9,3150.1,1.77527633]
[1767809143290,1.01e-06,3150.9,3150.2,3.17439228]
[1767809144226,0.979422,3150.8,3150.1,0.833]
[1767809144439,0.979422,3150.8,3150.1,4.00744976]
[1767809144587,0.979422,3150.8,3150.1,0.833]
[1767809146419,0.979422,3150.8,3149.9,0.94227633]
[1767809146420,0.979422,3150.7,3149.9,0.94227633]
[1767809146607,0.979422,3150.7,3148.7,3.33588213]
[1767809146608,0.979422,3150.7,3149.4,0.94227633]
[1767809146811,0.979422,3150.7,3149.5,3.17505704]
[1767809146991,0.979422,3150.7,3149.5,4.00805704]
[1767809147400,0.979422,3150.7,3149.5,4.00809014]
[1767809147622,0.979422,3150.5,3149.9,0.002]
[1767809148428,0.979422,3150.3,3149.9,0.002]
[1767809150520,4.15378629,3150.3,3149.9,0.002]
[1767809152615,0.979422,3150.2,3149.9,0.002]
[1767809154914,4.15392439,3150.1,3149.9,0.002]
[1767809155111,0.979422,3150.1,3149.9,0.002]
[1767809157201,4.15398861,3150.1,3149.9,0.002]
[1767809157404,4.86336078,3150.1,3149.9,0.002]
[1767809157727,1.68879417,3150.1,3149.9,0.002]
[1767809159706,3.88388588,3150.1,3149.9,0.002]
[1767809159915,3.17451371,3150.1,3149.9,0.002]
[1767809160735,0.979422,3150.0,3149.9,0.002]
[1767809161231,4.08521272,3149.9,3149.3,0.833]
[1767809161432,0.91050877,3149.8,3149.1,0.90593746]
[1767809161634,0.91050877,3149.8,3149.3,0.833]
[1767809161930,0.91050877,3149.8,3148.8,3.17573244]
[1767809161931,0.98818421,3149.7,3148.8,4.00881035]
[1767809162111,0.98818421,3150.1,3149.3,3.17527402]
[1767809162316,0.98818421,3150.1,3149.3,0.90870104]
[1767809162835,0.98818421,3150.1,3149.3,4.08393596]
[1767809163134,0.98818421,3150.1,3149.3,0.90870104]
[1767809163312,0.98818421,3150.0,3149.4,0.90870104]
[1767809163716,0.98818421,3150.2,3149.4,0.90870104]
[1767809163917,7.33678593,3150.3,3149.4,0.90870104]
[1767809164317,0.98818421,3150.2,3149.4,0.90870104]
[1767809164921,0.98818421,3150.2,3149.3,0.833]
[1767809165103,0.98818421,3150.0,3149.3,0.833]
[1767809165737,4.16288816,3149.9,3149.3,0.833]
[1767809166035,0.98818421,3149.9,3149.3,4.00829107]
[1767809166333,0.98818421,3150.1,3149.3,4.91699211]
[1767809166536,3.17449232,3150.2,3149.4,0.90870104]
[1767809166934,0.833,3150.4,3149.4,0.90870104]
[1767809167135,0.98818421,3150.7,3149.6,0.90870104]
[1767809168041,3.1739986,3150.6,3149.7,3.17490554]
[1767809168246,3.1739986,3150.6,3149.8,0.90870104]
[1767809170041,4.16218281,3150.6,3149.8,0.90870104]
[1767809170236,3.1739986,3150.6,3149.9,0.90870104]
[1767809170840,4.1620022,3150.8,3149.9,0.90870104]
[1767809171044,4.66150252,3150.8,3149.9,0.91070104]
[1767809171245,4.1620022,3150.8,3149.9,0.91070104]
[1767809171443,0.001,3150.4,3149.9,0.91070104]
[1767809171618,1.01e-06,3150.9,3150.3,0.90870104]
[1767809171817,0.98818421,3151.7,3150.9,0.90870104]
[1767809172016,3.17259977,3152.0,3151.2,0.90870104]
[1767809172226,4.16078398,3152.0,3151.3,0.4082196]
[1767809172425,4.16078398,3152.0,3151.3,0.90870104]
[1767809172426,6.34519954,3152.0,3151.3,0.90870104]
[1767809173044,3.17259977,3152.0,3151.3,0.90870104]
[1767809173237,6.34519954,3152.0,3151.3,0.90870104]
[1767809174146,0.98818421,3151.9,3150.8,0.90870104]
[1767809174335,0.98818421,3151.9,3150.8,1.74170104]
[1767809174539,0.98818421,3151.7,3150.8,1.74170104]
[1767809174922,0.001,3152.1,3151.1,0.90870104]
[1767809175117,0.001,3152.1,3151.4,0.90870104]
[1767809175330,3.17348818,3152.1,3151.4,0.90870104]
[1767809175847,4.16167239,3152.1,3151.2,3.17333158]
[1767809176047,0.98818421,3152.0,3151.2,3.17333158]
[1767809176254,4.1608148,3152.0,3151.2,3.17333158]
[1767809176425,4.1608148,3152.0,3151.1,4.08215428]
[1767809177255,0.98818421,3152.0,3151.2,0.90870104]
[1767809177468,0.98818421,3152.0,3151.3,0.833]
[1767809178142,0.001,3152.1,3151.3,4.91491054]
[1767809178719,0.001,3152.1,3151.4,0.90870104]
[1767809179646,0.001,3152.1,3151.5,0.833]
[1767809180347,0.001,3152.1,3151.6,3.17299149]
[1767809180550,0.001,3152.1,3151.6,6.34598298]
[1767809181123,0.001,3152.1,3151.6,7.25468402]
[1767809181322,0.001,3152.1,3151.7,0.90870104]
[1767809182325,0.001,3152.1,3151.8,3.17279015]
[1767809182643,0.001,3152.1,3151.8,7.25428134]
[1767809182820,0.98818421,3152.6,3151.8,7.25428134]
[1767809183022,0.001,3152.7,3151.9,0.90870104]
[1767809183228,0.001,3152.7,3152.1,0.90870104]
[1767809184555,0.001,3152.7,3152.3,0.90870104]
[1767809186453,0.001,3152.7,3150.7,1.52841789]
[1767809186454,0.001,3152.7,3151.8,0.90870104]
[1767809186751,0.98918421,3152.7,3152.1,0.832]
[1767809186931,0.98918421,3152.7,3152.1,1.23245677]
[1767809187331,0.001,3152.7,3152.1,2.14115781]
[1767809187525,0.001,3152.7,3152.2,0.832]
[1767809189555,0.001,3152.7,3152.2,4.00436054]
[1767809189758,0.001,3152.7,3152.3,0.33046292]
[1767809190450,0.001,3152.7,3152.2,0.832]
[1767809190635,0.98918421,3152.7,3151.9,0.90870104]
[1767809190835,1.41937674,3152.7,3150.9,0.90870104]
[1767809191045,0.98818421,3152.5,3151.4,3.17312444]
[1767809192134,0.98818421,3152.5,3151.3,0.98528339]
[1767809192333,0.98818421,3152.5,3151.6,3.17293264]
[1767809192544,4.14414674,3152.4,3151.5,3.1730436]
[1767809192740,0.97196047,3152.3,3151.5,3.1730436]
[1767809194141,0.97196047,3152.3,3151.4,4.15842654]
[1767809194538,3.17238753,3152.2,3151.4,4.15846474]
[1767809194743,4.144348,3152.2,3151.4,4.15846474]
[1767809194942,4.144348,3152.2,3151.5,0.41584647]
[1767809195144,0.97196047,3152.2,3151.5,0.41584647]
[1767809195655,0.97196047,3152.5,3151.5,1.40112986]
[1767809196044,0.97196047,3152.5,3151.8,0.002]
[1767809196735,0.001,3152.3,3151.8,0.002]
[1767809199166,0.001,3152.3,3151.8,0.834]
[1767809199463,0.001,3152.3,3151.9,0.98528339]
[1767809199846,0.001,3152.7,3152.2,0.98528339]
[1767809200038,0.001,3152.7,3152.2,1.81728339]
[1767809200643,0.97296047,3152.7,3151.9,0.98528339]
[1767809200842,0.97296047,3152.7,3152.0,0.832]
[1767809201055,0.97296047,3152.7,3152.1,0.18172834]
[1767809201769,0.001,3152.7,3152.1,0.18172834]
[1767809201948,0.97296047,3152.7,3152.1,0.18172834]
[1767809202342,0.97196047,3152.6,3151.8,0.002]
[1767809202950,0.97196047,3152.4,3151.8,0.002]
[1767809204970,0.97196047,3152.3,3151.8,0.002]
[1767809206876,0.97196047,3152.3,3151.5,0.002]
[1767809207038,0.97196047,3152.1,3151.5,0.002]
[1767809208385,6.34477506,3152.2,3151.5,0.002]
[1767809208386,3.17238753,3152.2,3151.5,0.002]
[1767809208546,4.144348,3152.2,3151.5,0.002]
[1767809208852,4.144348,3152.2,3152.1,0.002]
[1767809209052,8.14356737,3152.2,3151.8,0.002]
[1767809209254,4.144348,3152.2,3151.8,0.002]
[1767809210778,0.97196047,3152.1,3150.1,0.98528339]
[1767809210973,0.97196047,3151.9,3150.5,3.17604751]
[1767809211280,0.97196047,3151.7,3150.5,0.002]
[1767809213280,0.97196047,3151.5,3150.5,0.002]
[1767809214067,0.97196047,3151.4,3150.5,0.002]
[1767809215589,0.97196047,3151.2,3150.5,0.002]
[1767809216360,0.97196047,3151.2,3150.5,0.00081185]
[1767809216559,0.97196047,3151.0,3150.5,0.00081185]
[1767809217354,1.04918411,3151.1,3150.5,0.00081185]
[1767809217557,5.49746808,3153.6,3150.5,0.98609524]
[1767809217558,4.14517838,3151.4,3150.5,0.98609524]
[1767809217885,7.31839629,3151.4,3150.5,0.98609524]
[1767809218058,4.14517838,3151.4,3150.5,0.98609524]
[1767809218259,0.97196047,3151.3,3150.5,0.98609524]
[1767809218686,0.97196047,3151.3,3150.5,0.00081185]
[1767809218883,6.34643582,3151.4,3150.5,0.00081185]
[1767809218884,0.97196047,3151.1,3150.5,0.00081185]
[1767809219064,0.97196047,3151.1,3150.2,0.002]
[1767809219264,0.73183963,3151.2,3150.2,0.98728339]
[1767809219468,0.73183963,3151.2,3150.3,0.98528339]
[1767809219469,3.17349497,3151.1,3150.3,0.98528339]
[1767809219662,3.17349497,3151.1,3150.3,4.15953646]
[1767809220183,7.31879313,3151.2,3150.4,0.98528339]
[1767809220362,4.1453768,3151.2,3150.4,0.98528339]
[1767809220562,0.7318681,3151.1,3150.8,0.002]
[1767809220774,0.7318681,3151.1,3150.8,0.00083649]
[1767809221492,0.97196047,3151.5,3150.8,0.00083649]
[1767809221784,3.17299149,3151.6,3150.8,0.93577487]
[1767809222086,6.34607116,3151.6,3150.8,0.93577487]
[1767809222270,7.32897604,3151.6,3150.8,0.93577487]
[1767809222471,0.98290488,3151.5,3150.8,0.00083649]
[1767809222666,0.7328976,3151.4,3150.8,0.00083649]
[1767809223270,3.17281875,3151.8,3150.8,0.00083649]
[1767809223271,1.71457843,3152.0,3150.8,0.93577487]
[1767809223470,0.98290488,3152.0,3151.0,0.93493838]
[1767809223669,0.833,3152.6,3151.0,0.93493838]
[1767809223670,0.98290488,3152.5,3151.0,0.93493838]
[1767809223887,4.15499052,3152.5,3151.0,0.93493838]
[1767809224187,7.82597521,3152.5,3151.2,0.93493838]
[1767809224392,7.82597521,3152.5,3151.4,0.93493838]
[1767809224587,0.98290488,3152.4,3151.4,0.93493838]
[1767809225761,7.32747868,3152.3,3151.4,0.93493838]
[1767809226469,4.15519178,3152.3,3151.4,4.10806198]
[1767809226864,4.15519178,3152.3,3151.4,0.93493838]
[1767809226865,0.90056776,3152.2,3151.4,0.93493838]
[1767809227083,0.90056776,3152.2,3151.4,4.10811406]
[1767809228096,4.07301451,3152.2,3151.4,4.10811406]
[1767809228609,0.90056776,3152.2,3151.4,4.10811406]
[1767809228813,0.90056776,3152.2,3151.4,7.28130692]
[1767809228999,4.0728261,3152.4,3151.5,0.94700995]
[1767809229473,0.001,3152.7,3151.5,0.94700995]
[1767809229867,0.001,3152.7,3151.7,0.94700995]
[1767809230071,0.001,3152.7,3151.9,0.94700995]
[1767809232082,0.001,3152.7,3152.1,0.94700995]
[1767809232675,0.001,3152.4,3152.1,0.94700995]
[1767809232878,0.001,3152.7,3152.1,0.94700995]
[1767809234316,0.001,3152.7,3151.8,0.832]
[1767809234317,0.001,3152.7,3152.3,0.94700995]
[1767809234681,0.001,3152.7,3152.3,1.77900995]
[1767809235998,0.001,3152.7,3152.1,0.94700995]
[1767809236180,0.90156776,3152.7,3152.1,0.832]
[1767809236380,0.90156776,3152.7,3151.8,4.11975809]
[1767809236585,0.90156776,3152.7,3151.9,3.17266898]
[1767809237186,0.90156776,3152.7,3152.0,3.17256607]
[1767809237389,0.001,3152.7,3152.1,4.11949643]
[1767809237588,0.001,3152.7,3152.2,0.94700995]
[1767809237916,0.001,3152.7,3152.3,0.94700995]
[1767809238082,0.001,3152.7,3152.4,0.17790099]
[1767809238782,0.001,3152.7,3152.2,4.95135079]
[1767809239178,0.001,3152.7,3152.3,4.11927333]
[1767809239410,0.001,3152.7,3152.3,0.94700995]
[1767809240596,0.001,3152.7,3152.2,0.832]
[1767809241482,0.001,3152.7,3151.8,3.17273519]
[1767809241681,0.001,3152.7,3151.9,0.832]
[1767809241682,0.90156776,3152.7,3151.9,0.832]
[1767809241889,0.90156776,3152.7,3151.9,4.00467364]
[1767809242088,0.90156776,3152.7,3151.9,0.832]
[1767809242535,4.0734528,3152.7,3151.9,4.00466629]
[1767809242715,0.90156776,3152.7,3151.9,4.00466629]
[1767809242931,0.90156776,3152.7,3151.9,8.12436572]
[1767809243255,0.90156776,3152.7,3151.9,4.95167624]
[1767809243749,4.07346286,3152.7,3151.9,4.95167624]
[1767809244444,4.07346286,3152.7,3152.2,0.002]
[1767809244821,0.90156776,3152.7,3152.2,0.002]
[1767809245005,0.001,3152.4,3152.2,0.002]
[1767809249415,0.90156776,3152.4,3152.2,0.002]
[1767809249619,0.90156776,3152.4,3151.9,0.002]
[1767809249815,0.90056776,3152.3,3151.9,0.002]
[1767809250848,0.72555795,3152.4,3151.9,0.002]
[1767809251433,3.1722869,3152.3,3151.9,0.002]
[1767809251957,4.79836343,3152.4,3151.9,0.002]
[1767809252145,4.7983156,3152.4,3151.9,0.002]
[1767809252346,1.62612571,3152.4,3151.9,0.002]
[1767809252655,4.79835747,3152.4,3151.9,0.002]
[1767809252856,1.62612571,3152.4,3151.9,0.002]
[1767809253260,0.001,3152.4,3152.0,0.97822088]
[1767809253465,0.95207757,3152.4,3151.9,0.002]
[1767809255554,4.12431728,3152.4,3151.9,0.002]
[1767809257278,0.95107757,3152.3,3151.9,0.002]
[1767809257924,0.95107757,3152.3,3152.2,0.002]
[1767809258433,4.12336447,3152.3,3152.2,0.002]
[1767809259225,4.12336447,3152.3,3151.9,0.002]
[1767809263623,0.95107757,3152.3,3151.9,0.002]
[1767809264256,4.12340167,3152.3,3151.9,0.002]
[1767809265764,0.95107757,3152.3,3151.9,0.002]
[1767809265967,0.001,3152.4,3151.9,0.002]
[1767809266135,0.95207757,3152.4,3151.9,0.002]
[1767809266663,4.12426802,3152.4,3151.9,0.002]
[1767809267652,0.95107757,3152.3,3151.9,0.002]
[1767809267956,0.95107757,3152.3,3151.2,0.97822088]
[1767809268257,0.95107757,3152.3,3151.3,0.97822088]
[1767809268637,0.95107757,3152.3,3151.4,0.97822088]
[1767809268638,0.95107757,3152.1,3151.4,0.97822088]
[1767809269535,3.17238753,3152.2,3151.4,0.97822088]
[1767809269936,3.17238753,3152.2,3151.9,0.002]
[1767809270137,0.72958017,3152.1,3151.9,0.002]
[1767809270369,0.001,3152.4,3151.9,0.98022088]
[1767809270586,3.17319153,3152.4,3151.9,0.98022088]
[1767809270890,6.34538306,3152.4,3151.9,0.98022088]
[1767809271951,3.17319153,3152.4,3151.9,0.98022088]
[1767809272163,3.90282823,3152.4,3151.9,0.98022088]
[1767809272984,7.07501976,3152.4,3151.9,0.98022088]
[1767809274643,3.90282823,3152.4,3151.9,0.98022088]
[1767809275053,0.7306367,3152.4,3151.9,0.98022088]
[1767809275273,3.90283997,3152.4,3151.9,0.98022088]
[1767809275578,0.001,3152.4,3151.9,0.98022088]
[1767809276069,0.001,3152.4,3152.0,0.97822088]
[1767809279446,0.001,3152.4,3152.1,0.97822088]
[1767809280611,0.95207757,3152.4,3151.9,0.002]
[1767809281693,0.001,3152.1,3151.9,0.002]
[1767809285473,0.001,3152.1,3151.9,0.94932016]
[1767809286974,0.97960051,3152.1,3151.3,0.94732016]
[1767809287497,0.97960051,3152.1,3151.1,0.94732016]
[1767809287882,0.97960051,3152.1,3150.9,4.9530154]
[1767809288490,0.97860051,3151.9,3150.9,1.77932016]
[1767809289000,0.97860051,3151.8,3150.8,0.00083649]
[1767809289993,0.97860051,3151.8,3150.8,3.1746111]
[1767809290194,0.97860051,3151.8,3150.8,0.00083649]
[1767809291727,0.97860051,3151.8,3150.6,0.834]
[1767809291728,0.97860051,3151.6,3150.6,0.002]
[1767809292394,0.97860051,3151.6,3150.6,0.94932016]
[1767809292589,0.97860051,3151.6,3150.6,4.12330648]
[1767809292789,0.97860051,3151.4,3150.7,0.94732016]
[1767809293208,0.97860051,3151.4,3150.9,0.002]
[1767809294076,0.97860051,3151.3,3150.9,0.002]
[1767809294274,0.97860051,3151.3,3150.6,0.002]
[1767809296200,4.15199477,3151.2,3150.6,0.002]
[1767809296405,4.88451939,3151.2,3150.6,0.002]
[1767809296799,0.97860051,3151.1,3150.6,0.002]
[1767809298410,0.97860051,3150.9,3150.6,0.002]
[1767809298618,0.97860051,3150.9,3150.5,0.002]
[1767809299188,0.97860051,3150.9,3150.2,0.002]
[1767809299388,6.34719136,3151.0,3150.2,0.002]
[1767809299389,0.97860051,3150.7,3150.2,0.002]
[1767809301188,0.97860051,3150.7,3149.9,0.002]
[1767809301189,0.97860051,3150.6,3149.9,0.002]
[1767809301407,3.90643683,3150.8,3150.1,0.94732016]
[1767809301618,6.34773459,3150.8,3150.1,0.94732016]
[1767809301915,0.97860051,3150.7,3149.9,0.94932016]
[1767809302615,0.97860051,3150.7,3149.9,0.002]
[1767809303327,4.15259911,3150.6,3149.9,0.002]
[1767809303626,0.73265559,3150.5,3149.9,0.002]
[1767809305223,0.73265559,3150.5,3150.2,0.002]
[1767809305404,0.001,3150.4,3150.2,0.002]
[1767809306498,0.97960051,3150.4,3149.9,0.002]
[1767809307821,0.001,3150.4,3149.9,0.94932016]
[1767809308500,4.56918169,3150.4,3149.9,0.002]
[1767809308705,3.59058118,3150.4,3149.9,0.002]
[1767809309226,0.41637347,3150.4,3149.9,0.002]
[1767809309420,0.001,3150.4,3149.9,0.94932016]
[1767809315210,0.001,3150.4,3149.9,4.12401471]
[1767809315410,0.001,3150.4,3150.0,0.98390788]
[1767809315938,0.001,3150.4,3149.9,0.002]
[1767809316124,0.001,3150.4,3149.9,0.98590788]
[1767809317130,0.001,3150.4,3150.2,0.002]
[1767809326459,0.94706277,3150.3,3149.3,1e-08]
[1767809326666,0.834,3150.4,3148.3,0.002]
[1767809326667,0.94706277,3149.4,3148.3,0.002]
[1767809326954,5.32668434,3149.5,3147.8,0.98590788]
[1767809326955,0.94706277,3149.2,3147.8,0.002]
[1767809327121,1.23569253,3149.3,3148.0,0.98390788]
[1767809327122,0.94706277,3149.0,3148.0,0.98390788]
[1767809327324,0.94706277,3149.0,3148.1,0.98390788]
[1767809327527,0.94706277,3149.0,3147.8,0.002]
[1767809327528,0.94706277,3149.0,3148.2,0.98590788]
[1767809327829,0.833,3148.9,3148.2,0.98590788]
[1767809328029,1.78006277,3148.9,3148.2,0.98590788]
[1767809328385,0.94706277,3148.7,3147.5,0.002]
[1767809328664,5.32668434,3148.8,3147.5,0.002]
[1767809328665,0.01656588,3148.2,3147.6,0.98390788]
[1767809328832,0.94706277,3149.0,3148.1,0.98390788]
[1767809329019,0.94706277,3149.0,3148.2,0.01292701]
[1767809329260,4.12233936,3149.4,3148.4,0.98390788]
[1767809329457,0.94706277,3149.3,3148.5,1.01566903]
[1767809329626,3.1740411,3150.6,3148.5,1.01566903]
[1767809329627,0.94706277,3149.6,3148.5,1.01566903]
[1767809330129,0.833,3150.1,3148.5,1.01566903]
[1767809330335,0.94706277,3150.2,3148.8,0.98390788]
[1767809330532,1.35929913,3150.2,3149.0,0.98390788]
[1767809330744,1.35929913,3150.2,3149.2,0.98390788]
[1767809331160,7.70823653,3150.2,3149.2,4.15929417]
[1767809331371,0.94706277,3150.1,3149.0,0.833]
[1767809331568,0.94706277,3149.8,3148.6,0.002]
[1767809332253,0.94706277,3149.4,3148.6,0.002]
[1767809332640,0.94706277,3149.3,3148.6,0.002]
[1767809333269,0.94706277,3149.1,3148.6,0.002]
[1767809334063,0.94706277,3149.3,3148.6,0.002]
[1767809335283,4.12247239,3149.2,3148.6,0.002]
[1767809336180,0.94706277,3149.2,3148.6,0.002]
[1767809337284,3.17551046,3149.1,3148.6,0.002]
[1767809337818,4.1225055,3149.2,3148.6,0.002]
[1767809340112,0.94706277,3149.1,3148.6,0.002]
[1767809340904,0.94706277,3149.0,3148.6,0.002]
[1767809341623,4.08177822,3149.2,3148.6,0.002]
[1767809341978,0.90633549,3149.2,3148.6,0.002]
[1767809342340,0.97239242,3149.6,3148.6,0.94253534]
[1767809342637,0.97239242,3149.9,3148.6,0.94253534]
[1767809342780,1.7878523,3149.8,3148.6,0.94253534]
[1767809343518,0.97239242,3149.7,3148.6,0.94253534]
[1767809343930,3.17500635,3149.6,3148.7,3.17591386]
[1767809344079,3.17500635,3149.6,3148.8,0.94053534]
[1767809344324,4.14739877,3149.6,3148.8,0.94053534]
[1767809344530,4.87963788,3149.6,3148.8,0.94053534]
[1767809344877,0.97239242,3149.6,3148.8,0.94053534]
[1767809345166,0.97239242,3149.8,3148.8,0.94053534]
[1767809345349,4.14721782,3149.8,3148.8,0.94053534]
[1767809346569,0.97239242,3149.7,3148.9,0.94053534]
[1767809348667,4.14738223,3149.7,3148.9,4.11623274]
[1767809349451,0.97239242,3149.7,3148.9,4.11623274]
[1767809349750,4.14733889,3149.7,3148.9,4.11623274]
[1767809350085,0.97239242,3149.6,3148.8,3.17576721]
[1767809350377,3.17460317,3150.0,3149.0,0.94053534]
[1767809350581,1.74321607,3150.1,3149.2,0.94053534]
[1767809350780,0.77082365,3150.1,3149.4,0.94053534]
[1767809351185,0.001,3150.4,3149.4,0.94053534]
[1767809352654,0.97239242,3150.9,3150.0,0.94053534]
[1767809352878,0.97239242,3150.9,3150.1,6.34900478]
[1767809353585,0.97239242,3151.2,3150.2,0.94053534]
[1767809353783,0.97239242,3151.4,3150.1,6.34900478]
[1767809353975,0.97239242,3151.2,3150.1,7.18200478]
[1767809354484,0.97239242,3151.2,3150.1,4.00750239]
[1767809355186,0.97239242,3151.0,3150.1,4.00750239]
[1767809356303,0.97239242,3151.0,3150.1,7.18200478]
[1767809356485,0.97239242,3151.0,3150.1,4.00750239]
[1767809356685,1.38698116,3150.9,3150.1,4.00750239]
[1767809356885,0.97239242,3150.8,3150.1,4.00750239]
[1767809357975,0.41458874,3150.9,3150.2,0.94053534]
[1767809358176,0.8151747,3151.3,3150.2,0.94053534]
[1767809358391,3.98849807,3151.3,3150.2,0.94053534]
[1767809358600,0.8151747,3151.3,3150.2,0.94053534]
[1767809358778,0.97239242,3151.4,3150.2,0.94053534]
[1767809358976,0.97239242,3151.7,3150.2,0.94053534]
[1767809360505,0.97239242,3151.5,3150.4,0.94053534]
[1767809362401,0.97239242,3151.3,3150.4,0.94053534]
[1767809362717,0.97239242,3151.1,3150.1,3.78]
[1767809364178,0.97239242,3151.1,3149.9,3.17469758]
[1767809364779,0.97239242,3150.9,3149.7,3.17489472]
[1767809364981,0.97239242,3150.9,3149.7,4.11543006]
[1767809365204,0.97239242,3150.7,3149.7,4.11543006]
[1767809365413,0.97239242,3150.7,3149.8,0.94053534]
[1767809365990,0.97239242,3150.7,3150.4,0.002]
[1767809366580,0.73195838,3150.8,3150.4,0.002]
[1767809369125,4.14590985,3151.1,3150.4,0.94253534]
[1767809370014,0.97239242,3151.1,3150.4,0.94253534]
[1767809370193,0.73187781,3151.2,3150.4,4.1167347]
[1767809370393,0.001,3151.4,3150.5,0.94053534]
[1767809370987,3.17320162,3152.4,3151.3,7.28712246]
[1767809371215,0.97339242,3152.4,3151.3,7.28712246]
[1767809371508,4.14558418,3152.4,3151.4,0.94053534]
[1767809371682,0.97339242,3152.4,3151.4,0.94053534]
[1767809374006,0.97339242,3152.4,3151.5,3.17309217]
[1767809374604,0.97339242,3152.4,3151.5,7.33152313]
[1767809375111,0.97339242,3152.4,3151.6,0.98533879]
[1767809377313,0.97339242,3152.4,3151.6,4.15829599]
[1767809378397,0.97239545,3152.4,3151.6,4.15829599]
[1767809378715,3.03e-06,3152.4,3151.7,0.98533879]
[1767809379510,3.03e-06,3152.4,3151.7,4.15822377]
[1767809379811,3.03e-06,3152.4,3151.7,0.98533879]
[1767809383113,0.92816353,3152.4,3151.7,0.98533879]
[1767809384423,0.92816353,3152.4,3151.7,4.15822436]
[1767809385919,0.92816353,3152.4,3151.8,0.98533879]
[1767809386516,3.17289542,3152.7,3151.8,0.98533879]
[1767809386517,0.9291605,3152.7,3151.8,0.98533879]
[1767809386686,0.9291605,3152.7,3151.9,1.16707267]
[1767809386890,0.001,3153.0,3151.9,1.16707267]
[1767809387891,0.001,3153.0,3152.1,0.98533879]
[1767809388109,0.001,3153.0,3152.3,0.98533879]
[1767809388317,0.9291605,3153.0,3152.4,0.18173388]
[1767809388505,0.9291605,3153.0,3152.3,0.832]
[1767809388911,0.9291605,3153.0,3152.3,1.81733879]
[1767809389221,0.9291605,3153.0,3152.4,0.98533879]
[1767809389597,0.001,3153.0,3152.4,0.98533879]
[1767809389923,0.9281605,3153.9,3152.8,0.98533879]
[1767809390228,0.9281605,3153.9,3153.0,0.98533879]
[1767809391017,0.9281605,3153.8,3152.8,0.832]
[1767809391401,0.9281605,3153.8,3152.7,7.32910761]
[1767809391598,0.9281605,3153.8,3152.8,0.832]
[1767809391806,0.9281605,3153.6,3152.6,4.00398319]
[1767809392014,0.9281605,3153.6,3152.6,4.98932198]
[1767809392015,0.9281605,3153.5,3152.6,4.98932198]
[1767809392790,0.9281605,3153.5,3152.7,0.98533879]
[1767809392996,0.9281605,3153.6,3152.7,0.98533879]
[1767809394135,0.9281605,3153.4,3152.7,0.98533879]
[1767809394704,0.9281605,3153.4,3152.7,4.15721768]
[1767809395645,0.9281605,3153.4,3152.7,0.98533879]
[1767809395834,0.9281605,3153.4,3152.5,0.98533879]
[1767809396136,0.9281605,3153.4,3152.6,0.832]
[1767809396315,0.9281605,3153.4,3152.6,4.00397627]
[1767809397004,0.9281605,3153.4,3152.7,0.98533879]
[1767809397205,4.09934239,3153.4,3152.7,0.98533879]
[1767809397516,0.9281605,3153.3,3152.7,0.98533879]
[1767809397730,0.9281605,3153.3,3152.6,0.832]
[1767809398425,0.9281605,3153.3,3152.6,4.00398151]
[1767809398805,0.9281605,3153.6,3152.7,0.98533879]
[1767809400883,0.9281605,3153.4,3151.6,0.98533879]
[1767809401037,0.9281605,3153.4,3152.0,0.98533879]
[1767809401367,0.9281605,3153.4,3152.3,4.16101008]
[1767809401659,0.9770712,3153.2,3152.7,0.002]
[1767809401819,0.9770712,3153.2,3151.9,0.90191171]
[1767809402022,0.9770712,3153.2,3152.0,4.00451944]
[1767809402239,0.9770712,3153.2,3152.4,0.002]
[1767809402822,0.91214905,3153.0,3151.1,0.002]
[1767809403027,0.91214905,3152.8,3151.3,4.07512154]
[1767809403229,0.91214905,3152.8,3151.3,3.17320983]
[1767809403439,0.91214905,3152.8,3151.2,4.07525626]
[1767809404041,0.91214905,3152.8,3151.1,0.002]
[1767809404242,0.91214905,3152.6,3151.1,0.002]
[1767809404953,0.27868086,3152.7,3151.1,0.002]
[1767809404954,0.91214905,3152.4,3151.1,0.002]
[1767809405149,9.51625692,3152.5,3151.1,0.002]
[1767809405150,0.91214905,3152.2,3151.1,0.002]
[1767809405332,0.91214905,3152.2,3150.4,0.002]
[1767809405532,0.91214905,3152.1,3150.4,0.002]
[1767809405742,0.91214905,3151.9,3150.4,0.033742]
[1767809405937,0.91214905,3151.7,3150.4,0.002]
[1767809406456,0.91214905,3151.7,3150.4,3.17619874]
[1767809406752,15.8604282,3152.5,3150.4,0.90391171]
[1767809406753,0.91214905,3151.5,3150.4,0.90391171]
[1767809407158,0.91214905,3151.3,3150.4,0.90391171]
[1767809407623,0.91214905,3151.3,3150.5,0.03174099]
[1767809407823,0.91214905,3151.3,3150.4,0.90391171]
[1767809408028,0.91214905,3151.3,3150.4,0.002]
[1767809409158,0.91214905,3151.1,3150.4,0.002]
[1767809412832,0.91214905,3151.0,3150.4,0.002]
[1767809413935,0.91214905,3151.0,3150.7,0.002]
[1767809414633,0.91214905,3150.9,3150.4,0.002]
[1767809414840,0.91214905,3150.8,3150.4,0.002]
[1767809417132,3.17381097,3150.8,3150.4,0.002]
[1767809417333,0.91214905,3150.7,3150.4,0.002]
[1767809417544,0.91214905,3150.5,3150.4,0.002]
[1767809418153,0.7259771,3150.6,3150.4,0.002]
[1767809418354,4.08596002,3150.8,3150.4,0.002]
[1767809418869,0.91214905,3150.7,3150.4,0.002]
[1767809419167,4.08614765,3150.6,3150.4,0.002]
[1767809419393,0.91214905,3150.5,3150.4,0.002]
[1767809419566,0.91214905,3150.5,3150.0,0.002]
[1767809419865,0.91214905,3150.3,3150.0,0.002]
[1767809421165,3.17440162,3150.2,3150.0,0.002]
[1767809421368,0.91214905,3150.3,3150.0,0.002]
[1767809421940,4.08649394,3150.3,3150.0,0.002]
[1767809423676,0.91214905,3150.2,3150.0,0.002]
[1767809423861,0.79868535,3150.2,3150.0,0.002]
[1767809424066,4.08634915,3150.4,3150.0,0.002]
[1767809424776,0.91214905,3150.3,3150.0,0.002]